bitfinex/quotes_SOLUSD_20230116
["timestamp","ask_amount","ask_price","bid_price","bid_amount"]
[1673906873326,20.0,23.67,23.659,20.0]
[1673906873536,20.0,23.67,23.66,17.0]
[1673906873745,20.0,23.67,23.66,55.49247192]
[1673906873956,20.0,23.671,23.66,96.79941629]
[1673906874282,20.0,23.671,23.66,58.30694437]
[1673906874678,31.7,23.674,23.661,58.49247192]
[1673906874891,31.7,23.676,23.662,17.0]
[1673906875096,31.7,23.676,23.662,55.49247192]
[1673906875309,31.7,23.676,23.662,38.49247192]
[1673906875626,20.0,23.675,23.645,20.0]
[1673906875841,31.7,23.674,23.645,20.0]
[1673906876053,40.0,23.673,23.651,37.38077474]
[1673906876259,20.0,23.671,23.651,37.38077474]
[1673906876479,31.71,23.67,23.651,37.38077474]
[1673906876694,20.0,23.669,23.651,37.38077474]
[1673906877100,20.0,23.669,23.651,38.49247192]
[1673906877438,20.0,23.669,23.652,20.0]
[1673906877839,31.71,23.668,23.652,20.0]
[1673906878056,20.0,23.667,23.65,17.38077474]
[1673906878807,20.0,23.667,23.646,149.7218]
[1673906879753,20.0,23.665,23.648,20.0]
[1673906880895,20.0,23.665,23.649,17.0]
[1673906882254,20.0,23.665,23.648,20.0]
[1673906882465,31.72,23.664,23.647,20.0]
[1673906883318,31.72,23.664,23.647,37.38077474]
[1673906883526,20.0,23.665,23.647,37.38077474]
[1673906883739,20.0,23.665,23.648,20.0]
[1673906883944,31.71,23.666,23.648,58.49247192]
[1673906884154,20.0,23.667,23.648,75.87324666]
[1673906884363,20.0,23.667,23.65,20.0]
[1673906884698,20.0,23.667,23.651,17.0]
[1673906885614,20.0,23.667,23.65,20.0]
[1673906886158,20.0,23.667,23.65,62.22016395]
[1673906886669,20.0,23.667,23.65,20.0]
[1673906886885,20.0,23.667,23.651,17.0]
[1673906888474,31.71,23.668,23.651,17.0]
[1673906888868,31.71,23.669,23.652,58.49247192]
[1673906889084,16.25,23.67,23.653,17.0]
[1673906890056,20.0,23.669,23.653,17.0]
[1673906890263,51.71,23.669,23.652,17.0]
[1673906891518,51.71,23.669,23.652,55.49247192]
[1673906891931,51.71,23.669,23.652,97.71263587]
[1673906892363,51.71,23.669,23.653,20.0]
[1673906892675,51.71,23.669,23.654,17.0]
[1673906893084,51.71,23.669,23.655,20.0]
[1673906893299,51.71,23.669,23.656,17.0]
[1673906893497,31.71,23.67,23.656,55.49247192]
[1673906893714,31.7,23.672,23.657,100.71263587]
[1673906893924,20.0,23.671,23.658,17.0]
[1673906894135,20.0,23.671,23.659,20.0]
[1673906894346,20.0,23.671,23.66,17.0]
[1673906894567,20.0,23.672,23.66,59.22016395]
[1673906894795,20.0,23.672,23.661,20.0]
[1673906895007,20.0,23.672,23.662,17.0]
[1673906895512,31.7,23.676,23.662,55.49247192]
[1673906895731,31.7,23.679,23.662,55.49247192]
[1673906895914,31.7,23.679,23.663,20.0]
[1673906896120,31.7,23.679,23.664,17.0]
[1673906896330,20.0,23.678,23.664,55.49247192]
[1673906896544,20.0,23.678,23.665,38.49247192]
[1673906896751,20.0,23.678,23.666,17.0]
[1673906897183,20.0,23.678,23.667,38.49247192]
[1673906897380,20.0,23.678,23.668,17.0]
[1673906897805,20.0,23.678,23.669,38.49247192]
[1673906898015,20.0,23.678,23.641,91.41008968]
[1673906898227,20.0,23.678,23.662,17.0]
[1673906898674,20.0,23.678,23.664,20.0]
[1673906898885,20.0,23.678,23.665,17.0]
[1673906899486,47.94,23.68,23.665,17.0]
[1673906899716,16.16,23.68,23.666,38.43960525]
[1673906899906,16.16,23.68,23.667,37.0]
[1673906900760,16.16,23.68,23.667,17.0]
[1673906900967,16.16,23.68,23.666,17.0]
[1673906901380,16.16,23.68,23.667,42.22016395]
[1673906901593,16.16,23.68,23.668,17.0]
[1673906902013,20.0,23.679,23.667,42.22016395]
[1673906902451,20.0,23.679,23.661,153.39653859]
[1673906902662,51.7,23.679,23.661,117.2796]
[1673906903720,51.7,23.679,23.653,20.0]
[1673906903939,51.7,23.679,23.656,20.0]
[1673906905282,51.7,23.679,23.654,20.0]
[1673906905504,51.7,23.679,23.655,17.0]
[1673906905824,51.7,23.679,23.657,20.0]
[1673906906135,51.7,23.679,23.658,17.0]
[1673906907284,51.7,23.679,23.656,20.0]
[1673906907502,16.14,23.67,23.659,36.11693859]
[1673906907720,31.71,23.669,23.652,111.8131]
[1673906908024,20.0,23.668,23.652,111.8131]
[1673906908973,20.0,23.668,23.648,20.0]
[1673906909167,20.0,23.668,23.649,17.0]
[1673906909371,31.71,23.667,23.648,20.0]
[1673906910328,31.71,23.668,23.65,20.0]
[1673906910542,51.71,23.669,23.65,20.0]
[1673906910753,20.0,23.669,23.651,47.68553466]
[1673906910964,20.0,23.669,23.653,20.0]
[1673906911164,31.71,23.671,23.654,17.0]
[1673906911373,20.0,23.67,23.654,17.0]
[1673906911815,20.0,23.67,23.654,59.22016395]
[1673906912036,20.0,23.67,23.655,20.0]
[1673906912252,31.7,23.676,23.656,17.0]
[1673906912549,31.7,23.678,23.658,20.0]
[1673906912757,20.0,23.677,23.659,17.0]
[1673906912966,20.0,23.676,23.659,59.22016395]
[1673906913285,20.0,23.675,23.66,42.22016395]
[1673906913499,31.7,23.674,23.661,17.0]
[1673906913711,40.0,23.673,23.656,108.1465]
[1673906914982,40.0,23.673,23.657,17.0]
[1673906915716,40.0,23.673,23.658,20.0]
[1673906915931,40.0,23.673,23.659,17.0]
[1673906916112,20.0,23.673,23.659,17.0]
[1673906916324,31.7,23.674,23.659,17.0]
[1673906916530,20.0,23.677,23.659,17.0]
[1673906916745,20.0,23.677,23.66,30.30475992]
[1673906917075,20.0,23.677,23.661,17.0]
[1673906917485,20.0,23.677,23.662,30.30475992]
[1673906917810,20.0,23.677,23.663,17.0]
[1673906923576,20.0,23.677,23.651,20.0]
[1673906923786,16.25,23.67,23.647,256.0179]
[1673906923998,31.71,23.669,23.647,119.6304]
[1673906924210,31.71,23.669,23.647,149.93515992]
[1673906924436,31.71,23.669,23.648,37.38077474]
[1673906924748,31.71,23.669,23.649,17.38077474]
[1673906924966,31.71,23.669,23.65,20.0]
[1673906925273,31.71,23.669,23.651,17.38077474]
[1673906925467,31.71,23.669,23.653,20.0]
[1673906925678,31.71,23.669,23.654,17.0]
[1673906925888,16.25,23.67,23.654,17.0]
[1673906927161,16.25,23.67,23.654,47.30475992]
[1673906927378,31.7,23.678,23.655,17.38077474]
[1673906927686,410.46,23.68,23.657,20.0]
[1673906927899,410.46,23.68,23.658,37.0]
[1673906928105,410.46,23.68,23.658,129.59236528]
[1673906928322,410.46,23.68,23.659,92.59236528]
[1673906928527,16.16,23.68,23.66,17.0]
[1673906928751,16.16,23.68,23.661,20.0]
[1673906928954,16.16,23.68,23.662,17.0]
[1673906929161,16.16,23.68,23.662,92.21159054]
[1673906929602,16.16,23.68,23.663,75.21159054]
[1673906929789,16.16,23.68,23.664,17.0]
[1673906930001,20.0,23.679,23.664,92.21159054]
[1673906930217,20.0,23.679,23.658,130.3713]
[1673906930432,31.7,23.678,23.658,130.3713]
[1673906930645,20.0,23.677,23.659,20.0]
[1673906930859,31.7,23.676,23.659,20.0]
[1673906931060,20.0,23.677,23.66,33.33809325]
[1673906931605,20.0,23.677,23.661,20.0]
[1673906932010,20.0,23.677,23.662,50.33809325]
[1673906932322,20.0,23.677,23.663,33.33809325]
[1673906932534,20.0,23.677,23.664,17.0]
[1673906932962,20.0,23.677,23.664,50.33809325]
[1673906936321,51.69,23.679,23.664,50.33809325]
[1673906936940,16.16,23.68,23.664,50.33809325]
[1673906937162,16.16,23.68,23.665,20.0]
[1673906937371,16.16,23.68,23.666,17.0]
[1673906937696,51.69,23.684,23.667,20.0]
[1673906937882,20.0,23.683,23.668,17.0]
[1673906938227,20.0,23.681,23.668,50.33809325]
[1673906938435,20.0,23.68,23.669,33.33809325]
[1673906938741,20.0,23.68,23.67,17.0]
[1673906939054,20.0,23.68,23.671,33.33809325]
[1673906939265,20.0,23.68,23.672,17.0]
[1673906939666,78.9089,23.712,23.673,51.37585897]
[1673906939879,20.0,23.695,23.675,20.0]
[1673906940192,20.0,23.695,23.676,17.0]
[1673906940404,20.0,23.693,23.676,102.16580621]
[1673906940613,20.0,23.692,23.677,85.16580621]
[1673906940828,20.0,23.692,23.678,17.0]
[1673906941049,20.0,23.692,23.678,102.16580621]
[1673906941270,20.0,23.691,23.679,85.16580621]
[1673906941466,20.0,23.69,23.68,17.0]
[1673906941683,20.0,23.69,23.68,102.16580621]
[1673906941887,20.0,23.69,23.681,85.16580621]
[1673906942203,20.0,23.69,23.682,51.12563325]
[1673906942610,20.0,23.69,23.683,34.12563325]
[1673906942820,20.0,23.69,23.684,17.0]
[1673906943043,20.0,23.694,23.684,68.04017296]
[1673906943255,147.5388,23.711,23.684,102.16580621]
[1673906943444,20.0,23.71,23.685,47.77630629]
[1673906943662,31.65,23.709,23.686,17.0]
[1673906943867,20.0,23.708,23.686,51.12563325]
[1673906944073,20.0,23.706,23.687,81.90193954]
[1673906944285,31.66,23.705,23.688,17.0]
[1673906944503,20.0,23.704,23.688,96.68760621]
[1673906944712,31.66,23.703,23.689,79.68760621]
[1673906945062,20.0,23.702,23.69,96.68760621]
[1673906945446,20.0,23.702,23.691,79.68760621]
[1673906945654,20.0,23.702,23.692,17.0]
[1673906945881,20.0,23.702,23.692,34.12563325]
[1673906946100,20.0,23.7,23.692,34.12563325]
[1673906948712,20.0,23.7,23.683,129.25902572]
[1673906949040,20.0,23.696,23.683,112.0088]
[1673906949644,20.0,23.696,23.682,29.56948668]
[1673906950066,20.0,23.696,23.675,112.0088]
[1673906950067,31.67,23.695,23.675,112.0088]
[1673906950304,20.0,23.693,23.676,29.56948668]
[1673906950514,51.68,23.692,23.676,29.56948668]
[1673906950912,51.68,23.692,23.677,20.0]
[1673906951140,20.0,23.692,23.677,37.25022572]
[1673906951353,20.0,23.692,23.679,20.0]
[1673906951545,51.68,23.692,23.68,17.0]
[1673906951755,20.0,23.691,23.679,29.56948668]
[1673906951966,20.0,23.69,23.68,17.0]
[1673906954094,20.0,23.69,23.68,46.56948668]
[1673906956291,51.68,23.689,23.68,29.56948668]
[1673906956716,20.0,23.688,23.68,29.56948668]
[1673906957949,20.0,23.688,23.681,17.0]
[1673906958163,20.0,23.689,23.681,17.0]
[1673906958602,20.0,23.69,23.681,17.0]
[1673906959231,20.0,23.692,23.681,17.0]
[1673906959754,51.68,23.693,23.681,46.56948668]
[1673906959949,31.67,23.697,23.681,85.31945964]
[1673906960380,31.67,23.697,23.682,20.0]
[1673906960585,31.67,23.697,23.683,17.0]
[1673906960805,51.67,23.698,23.683,58.69663963]
[1673906961013,51.67,23.698,23.684,41.69663963]
[1673906961211,51.67,23.698,23.685,17.0]
[1673906962496,51.67,23.698,23.685,89.17179298]
[1673906964181,20.0,23.698,23.685,89.17179298]
[1673906968484,20.0,23.698,23.679,38.00160712]
[1673906968699,51.67,23.695,23.673,111.2987]
[1673906969015,51.67,23.695,23.675,150.01040712]
[1673906969226,20.0,23.694,23.676,20.0]
[1673906969414,31.68,23.693,23.676,20.0]
[1673906969630,20.0,23.691,23.676,20.0]
[1673906969961,20.0,23.69,23.677,17.0]
[1673906971005,20.0,23.69,23.677,34.25022572]
[1673906971216,20.0,23.69,23.678,20.0]
[1673906971447,20.0,23.69,23.679,17.0]
[1673906971978,20.0,23.69,23.678,17.0]
[1673906971979,36.25,23.69,23.678,17.0]
[1673906972184,36.25,23.69,23.675,112.0088]
[1673906972185,20.0,23.689,23.676,17.0]
[1673906973241,20.0,23.687,23.676,17.0]
[1673906976076,20.0,23.687,23.669,34.72948021]
[1673906976601,16.25,23.68,23.666,59.0407538]
[1673906976790,16.25,23.68,23.663,20.0]
[1673906977002,20.0,23.679,23.663,20.0]
[1673906977421,20.0,23.679,23.663,37.25022572]
[1673906977970,20.0,23.679,23.664,17.0]
[1673906978376,20.0,23.679,23.663,17.25022572]
[1673906978594,20.0,23.679,23.662,111.2213]
[1673906979858,20.0,23.679,23.663,17.0]
[1673906980693,47.94,23.68,23.663,34.25022572]
[1673906980911,20.0,23.683,23.665,20.0]
[1673906981121,20.0,23.682,23.666,17.0]
[1673906981766,20.0,23.682,23.666,57.27614687]
[1673906981945,20.0,23.68,23.662,111.2213]
[1673906982161,20.0,23.68,23.663,20.0]
[1673906982366,31.7,23.679,23.663,20.0]
[1673906982805,20.0,23.678,23.663,20.0]
[1673906983235,20.0,23.678,23.663,40.27614687]
[1673906983436,20.0,23.678,23.664,17.0]
[1673906984586,20.0,23.678,23.663,17.0]
[1673906985109,20.0,23.678,23.664,20.0]
[1673906985334,20.0,23.678,23.665,17.0]
[1673906986282,31.69,23.68,23.665,17.0]
[1673906986469,20.0,23.682,23.666,20.0]
[1673906986684,20.0,23.683,23.667,17.0]
[1673906986997,20.0,23.683,23.668,20.0]
[1673906987211,20.0,23.683,23.669,17.0]
[1673906987637,20.0,23.683,23.669,34.25022572]
[1673906988068,20.0,23.683,23.669,74.52637259]
[1673906988887,134.4138,23.686,23.67,20.0]
[1673906989106,134.4138,23.686,23.671,17.0]
[1673906989435,134.4138,23.686,23.672,60.27614687]
[1673906989648,20.0,23.687,23.673,17.0]
[1673906989861,20.0,23.687,23.673,74.52637259]
[1673906990202,20.0,23.689,23.674,60.27614687]
[1673906990357,20.0,23.689,23.675,17.0]
[1673906990572,20.0,23.689,23.675,57.27614687]
[1673906990782,20.0,23.689,23.676,40.27614687]
[1673906990992,20.0,23.689,23.677,17.0]
[1673906991521,20.0,23.689,23.678,43.13614687]
[1673906991745,20.0,23.689,23.679,17.0]
[1673906992676,20.0,23.689,23.678,43.13614687]
[1673906993006,20.0,23.689,23.673,35.78666712]
[1673906993200,20.0,23.689,23.673,78.92281399]
[1673906994182,20.0,23.689,23.674,17.0]
[1673906995641,20.0,23.689,23.674,60.13614687]
[1673906996906,20.0,23.689,23.675,20.0]
[1673906997226,20.0,23.689,23.676,60.13614687]
[1673906997556,20.0,23.689,23.677,43.13614687]
[1673906997763,20.0,23.689,23.678,17.0]
[1673906997947,36.25,23.69,23.678,17.0]
[1673906998160,16.25,23.69,23.679,45.73614687]
[1673906998375,16.25,23.69,23.68,17.0]
[1673906998601,20.0,23.692,23.68,17.0]
[1673906998785,20.0,23.691,23.68,17.0]
[1673906999210,20.0,23.691,23.68,62.73614687]
[1673907002587,31.68,23.694,23.681,45.73614687]
[1673907002806,164.9573,23.699,23.682,17.0]
[1673907003201,133.2873,23.699,23.683,45.73614687]
[1673907003411,133.2873,23.699,23.684,17.0]
[1673907003728,133.2873,23.699,23.685,45.73614687]
[1673907003953,133.2873,23.699,23.686,17.0]
[1673907004470,133.2873,23.699,23.686,62.73614687]
[1673907006916,133.2873,23.699,23.686,17.0]
[1673907007130,164.9573,23.699,23.678,20.0]
[1673907007321,31.67,23.695,23.679,20.0]
[1673907007743,20.0,23.694,23.679,20.0]
[1673907008283,20.0,23.694,23.68,17.0]
[1673907008496,20.0,23.694,23.679,20.0]
[1673907009961,20.0,23.694,23.68,17.0]
[1673907013518,20.0,23.693,23.68,17.0]
[1673907013730,20.0,23.692,23.68,17.0]
[1673907013953,20.0,23.691,23.678,17.0]
[1673907014277,20.0,23.691,23.676,17.0]
[1673907015108,20.0,23.691,23.677,20.0]
[1673907015299,20.0,23.691,23.678,17.0]
[1673907016493,20.0,23.691,23.677,17.0]
[1673907016990,20.0,23.691,23.678,20.0]
[1673907017202,20.0,23.691,23.679,17.0]
[1673907017953,31.68,23.693,23.679,17.0]
[1673907018268,51.67,23.698,23.68,17.25022572]
[1673907018483,51.67,23.698,23.681,37.0]
[1673907018669,20.0,23.698,23.681,37.0]
[1673907018880,20.0,23.698,23.682,17.25022572]
[1673907019096,20.0,23.698,23.683,17.0]
[1673907020372,51.67,23.697,23.683,17.0]
[1673907023508,31.67,23.697,23.684,20.0]
[1673907023836,133.2873,23.699,23.685,17.0]
[1673907025627,133.2873,23.699,23.683,37.0]
[1673907026042,31.66,23.705,23.685,20.0]
[1673907026247,31.66,23.707,23.686,17.0]
[1673907026455,20.0,23.706,23.687,20.0]
[1673907026668,31.66,23.705,23.688,17.0]
[1673907026863,31.66,23.707,23.689,20.0]
[1673907027073,63.72,23.71,23.69,17.0]
[1673907027284,32.07,23.71,23.69,17.0]
[1673907028460,20.0,23.708,23.69,17.0]
[1673907028878,20.0,23.708,23.688,17.0]
[1673907029069,20.0,23.708,23.689,20.0]
[1673907029283,20.0,23.708,23.69,17.0]
[1673907029917,20.0,23.708,23.691,20.0]
[1673907030127,20.0,23.708,23.692,17.0]
[1673907030670,20.0,23.708,23.69,17.0]
[1673907031068,20.0,23.708,23.69,38.16135539]
[1673907031280,20.0,23.706,23.69,38.16135539]
[1673907032025,20.0,23.706,23.689,20.0]
[1673907032464,20.0,23.706,23.69,46.75827676]
[1673907033802,20.0,23.706,23.69,84.91963215]
[1673907034980,20.0,23.706,23.69,117.12189789]
[1673907035386,20.0,23.708,23.691,20.0]
[1673907035601,20.0,23.708,23.692,17.0]
[1673907035815,20.0,23.708,23.692,87.43296548]
[1673907036136,20.0,23.708,23.693,70.43296548]
[1673907036330,20.0,23.708,23.694,17.0]
[1673907036537,20.0,23.708,23.694,87.43296548]
[1673907036753,20.0,23.708,23.695,70.43296548]
[1673907037075,20.0,23.708,23.696,87.43296548]
[1673907037285,20.0,23.708,23.696,55.16135539]
[1673907037692,73.12196354,23.708,23.69,30.10581009]
[1673907037921,73.12196354,23.708,23.687,20.0]
[1673907038131,51.66,23.708,23.687,20.0]
[1673907038324,51.66,23.708,23.688,69.99022881]
[1673907038544,51.66,23.708,23.689,19.92291609]
[1673907038743,51.66,23.708,23.689,50.02872618]
[1673907038957,51.66,23.708,23.69,30.10581009]
[1673907039166,51.66,23.708,23.692,20.0]
[1673907039499,20.0,23.708,23.693,17.0]
[1673907039709,20.0,23.708,23.691,17.0]
[1673907039906,20.0,23.708,23.691,47.10581009]
[1673907040116,20.0,23.708,23.692,30.10581009]
[1673907040440,20.0,23.708,23.693,17.0]
[1673907040652,51.66,23.708,23.693,17.0]
[1673907040843,20.0,23.708,23.693,17.0]
[1673907041701,20.0,23.708,23.693,47.10581009]
[1673907043590,31.65,23.711,23.694,29.98835943]
[1673907043804,20.0,23.712,23.696,20.0]
[1673907044120,20.0,23.712,23.697,17.0]
[1673907044436,20.0,23.712,23.698,20.0]
[1673907044624,20.0,23.712,23.699,17.0]
[1673907045906,31.65,23.713,23.699,17.0]
[1673907046117,51.64,23.719,23.699,56.88441872]
[1673907046324,20.0,23.719,23.7,32.60566797]
[1673907046543,139.3021,23.729,23.7,32.60566797]
[1673907046544,20.0,23.722,23.701,37.0]
[1673907046758,31.63,23.728,23.702,20.0]
[1673907046963,31.63,23.728,23.702,151.69253978]
[1673907047178,31.63,23.728,23.703,131.44231406]
[1673907047374,20.0,23.727,23.705,20.0]
[1673907047574,20.0,23.727,23.707,20.0]
[1673907047790,20.0,23.727,23.708,20.0]
[1673907048119,20.0,23.727,23.708,150.59650806]
[1673907048329,51.63,23.729,23.709,133.59650806]
[1673907048521,20.0,23.729,23.71,17.0]
[1673907048734,20.0,23.729,23.71,130.57153957]
[1673907048943,20.0,23.729,23.711,113.57153957]
[1673907049172,20.0,23.729,23.712,17.0]
[1673907049390,20.0,23.729,23.712,130.57153957]
[1673907050023,20.0,23.729,23.713,113.57153957]
[1673907050225,20.0,23.729,23.714,17.0]
[1673907050942,20.0,23.729,23.715,31.73489348]
[1673907051281,20.0,23.729,23.716,17.0]
[1673907051465,51.63,23.729,23.716,17.0]
[1673907051673,20.0,23.729,23.716,48.73489348]
[1673907052312,20.0,23.729,23.716,17.0]
[1673907052518,20.0,23.729,23.714,17.0]
[1673907053378,20.0,23.729,23.715,20.0]
[1673907053576,20.0,23.729,23.716,17.0]
[1673907053775,20.0,23.729,23.714,17.0]
[1673907054018,20.0,23.729,23.713,17.0]
[1673907054415,20.0,23.729,23.712,113.4329]
[1673907054844,20.0,23.729,23.713,31.73489348]
[1673907055482,20.0,23.729,23.714,20.0]
[1673907055794,20.0,23.729,23.715,17.0]
[1673907055982,20.0,23.729,23.715,98.83664609]
[1673907056409,20.0,23.729,23.716,39.88441872]
[1673907056634,20.0,23.729,23.717,17.0]
[1673907058929,20.0,23.727,23.717,17.0]
[1673907059351,20.0,23.729,23.718,31.73489348]
[1673907059559,20.0,23.729,23.719,17.0]
[1673907059783,20.0,23.729,23.717,17.0]
[1673907060606,20.0,23.731,23.717,17.0]
[1673907060841,20.0,23.736,23.719,20.0]
[1673907061053,20.0,23.738,23.72,17.0]
[1673907061360,20.0,23.738,23.721,20.0]
[1673907061567,20.0,23.738,23.722,17.0]
[1673907061781,20.0,23.738,23.722,61.73775206]
[1673907061988,20.0,23.736,23.722,61.73775206]
[1673907062202,20.0,23.736,23.723,44.73775206]
[1673907062525,20.0,23.736,23.724,17.0]
[1673907063134,20.0,23.738,23.724,96.32165265]
[1673907063968,20.0,23.738,23.724,61.73775206]
[1673907064179,20.0,23.738,23.718,34.58390059]
[1673907064407,171.2263,23.738,23.719,20.0]
[1673907064627,139.6063,23.738,23.719,64.73775206]
[1673907065151,139.6063,23.738,23.72,34.58390059]
[1673907065345,139.6063,23.738,23.721,17.0]
[1673907065669,139.6063,23.738,23.721,51.58390059]
[1673907066069,139.6063,23.738,23.721,96.32165265]
[1673907068608,139.6063,23.738,23.719,20.0]
[1673907068609,20.0,23.736,23.722,31.12421926]
[1673907068812,51.62,23.735,23.714,108.1902]
[1673907069052,20.0,23.734,23.714,108.1902]
[1673907069364,20.0,23.732,23.714,133.43212362]
[1673907069555,51.63,23.731,23.714,108.1902]
[1673907069760,20.0,23.73,23.714,108.1902]
[1673907069976,20.0,23.728,23.715,17.0]
[1673907071866,20.0,23.73,23.716,25.24192345]
[1673907072087,20.0,23.73,23.717,17.0]
[1673907072282,20.0,23.73,23.715,17.0]
[1673907074383,51.63,23.73,23.715,17.0]
[1673907074804,20.0,23.73,23.715,42.24192345]
[1673907076405,31.63,23.729,23.715,42.24192345]
[1673907076716,31.63,23.73,23.716,20.0]
[1673907076913,20.0,23.731,23.717,17.0]
[1673907077129,20.0,23.731,23.718,20.0]
[1673907077457,20.0,23.731,23.719,17.0]
[1673907077660,20.0,23.731,23.719,43.52810878]
[1673907077869,20.0,23.731,23.72,26.52810878]
[1673907078093,20.0,23.731,23.721,17.0]
[1673907078094,51.63,23.731,23.721,17.0]
[1673907078272,20.0,23.731,23.721,17.0]
[1673907079029,20.0,23.73,23.721,17.0]
[1673907080917,20.0,23.73,23.722,26.52810878]
[1673907081126,20.0,23.73,23.723,17.0]
[1673907081340,20.0,23.73,23.721,17.0]
[1673907082273,20.0,23.73,23.722,30.08144211]
[1673907082604,20.0,23.73,23.716,38.31222737]
[1673907082820,20.0,23.728,23.716,38.31222737]
[1673907083135,20.0,23.728,23.716,65.38423015]
[1673907083331,51.63,23.73,23.717,20.0]
[1673907083543,20.0,23.73,23.717,27.07200278]
[1673907083751,20.0,23.73,23.718,17.0]
[1673907084177,20.0,23.73,23.717,17.0]
[1673907084375,20.0,23.73,23.716,17.0]
[1673907085343,20.0,23.73,23.717,27.07200278]
[1673907085545,20.0,23.73,23.718,17.0]
[1673907086709,20.0,23.73,23.719,27.07200278]
[1673907086912,20.0,23.73,23.72,17.0]
[1673907087234,20.0,23.73,23.72,44.07200278]
[1673907087774,20.0,23.73,23.72,17.0]
[1673907087953,20.0,23.728,23.72,17.0]
[1673907088485,20.0,23.728,23.712,38.31222737]
[1673907088682,20.0,23.728,23.7,32.16]
[1673907088683,51.63,23.727,23.71,24.9043755]
[1673907088893,20.0,23.726,23.703,20.0]
[1673907089104,51.63,23.725,23.705,44.9043755]
[1673907089440,20.0,23.724,23.705,20.0]
[1673907089643,20.0,23.722,23.702,116.2944]
[1673907089859,20.0,23.724,23.703,20.0]
[1673907090272,20.0,23.723,23.703,20.0]
[1673907090593,20.0,23.722,23.703,20.0]
[1673907090780,20.0,23.721,23.703,20.0]
[1673907091746,32.16,23.72,23.702,116.2944]
[1673907091956,32.16,23.72,23.703,20.0]
[1673907091957,31.64,23.719,23.703,20.0]
[1673907092361,51.64,23.72,23.703,20.0]
[1673907092905,51.64,23.72,23.704,17.0]
[1673907093308,20.0,23.72,23.704,17.0]
[1673907094169,20.0,23.721,23.704,17.0]
[1673907094360,20.0,23.721,23.705,20.0]
[1673907094577,20.0,23.721,23.706,17.0]
[1673907095550,20.0,23.72,23.706,17.0]
[1673907095734,51.64,23.72,23.706,17.0]
[1673907095945,20.0,23.72,23.706,17.0]
[1673907097843,20.0,23.718,23.706,17.0]
[1673907098267,20.0,23.718,23.704,17.0]
[1673907101314,20.0,23.718,23.702,116.2944]